Cogmind - Beta 13 @@@ ROGUE MODE // 2024.04.19 @ 19:08:57 Player: AshCrow Result: Destroyed by L-31 Rogue with Katana Performance ------------- Evolutions (2) 1000 Regions Visited (6) 1200 Robots Destroyed (26) 130 Value Destroyed (711) 711 Prototype IDs (0) 0 Alien Tech Used (0) 0 Bonus (0) 0 TOTAL SCORE: 3041 Bonus ------- None Cogmind --------- Core Integrity 0/550 Matter 92/300 Energy 100/100 System Corruption 0% Temperature Cool (36) Movement Core (350) Ox6 Location -8/Materials Parts ------- > --- POWER (1) -------- (None) > --- PROPULSION (4) --- (None) > --- UTILITY (2) ------ Large Storage Unit > --- WEAPON (4) ------- (None) > --- INVENTORY (15) --- Ion Engine Improved Ion Engine Deuterium Engine Titanium Leg Wheel Small Storage Unit Assault Rifle Peak State ------------ > --- POWER ------------ Light Deuterium Engine > --- PROPULSION ------- Aluminum Leg Aluminum Leg Aluminum Leg Aluminum Leg > --- UTILITY ---------- Small Storage Unit Medium Armor Plating > --- WEAPON ----------- High-powered Shotgun High-powered Shotgun High-powered Shotgun Grenade Launcher > --- INVENTORY -------- Ion Engine Improved Ion Engine Deuterium Engine Light Treads Aluminum Leg Wheel Assault Rifle High-powered Shotgun [Rating: 21] Favorites ----------- Power Improved Ion Engine Engine Improved Ion Engine Propulsion Aluminum Leg Treads Light Treads Leg Aluminum Leg Utility Small Storage Unit Storage Small Storage Unit Protection Medium Armor Plating Weapon High-powered Shotgun Energy Gun Pulse Rifle Ballistic Gun High-powered Shotgun Launcher Grenade Launcher Build | -11 -10 -9 -9 -9 -8 -8 ------- Run | Yrd Mat Mat Min Exi Min Mat Slots Evolved 4 | . . 2 . . . 2 Power . | . . . . . . . Propulsion 2 | . . . . . . 2 Utility . | . . . . . . . Weapon 2 | . . 2 . . . . Parts Attached 24 | 5 3 5 2 . . 9 Power 3 | 1 . 1 . . . 1 Engine 3 | 1 . 1 . . . 1 Core . | . . . . . . . Reactor . | . . . . . . . Propulsion 7 | 2 . . . . . 5 Treads 1 | . . . . . . 1 Leg 6 | 2 . . . . . 4 Wheel . | . . . . . . . Hover . | . . . . . . . Flight . | . . . . . . . Utility 4 | 1 . 1 1 . . 1 Device . | . . . . . . . Storage 2 | 1 . . . . . 1 Processor . | . . . . . . . Hackware . | . . . . . . . Protection 2 | . . 1 1 . . . Artifact . | . . . . . . . Weapon 10 | 1 3 3 1 . . 2 Energy Gun 1 | . . . . . . 1 Energy Cannon . | . . . . . . . Ballistic Gun 7 | 1 2 3 . . . 1 Ballistic Cannon . | . . . . . . . Launcher 2 | . 1 . 1 . . . Special Weapon . | . . . . . . . Impact Weapon . | . . . . . . . Slashing Weapon . | . . . . . . . Piercing Weapon . | . . . . . . . Special Melee Weapon . | . . . . . . . Unidentified Prototypes . | . . . . . . . Parts Lost 13 | . . . . . . 13 Power 1 | . . . . . . 1 Propulsion 5 | . . . . . . 5 Utility 1 | . . . . . . 1 Weapon 6 | . . . . . . 6 Highest Loss Streak 7 | . . . . . . 7 To Critical Strikes . | . . . . . . . Average Slot Usage (%) 84 | . 82 81 94 100 100 68 Engine 9 | . 14 11 11 11 11 1 Treads 1 | . . . . . . 4 Leg 24 | . 28 22 22 22 22 28 Storage 10 | . 14 11 11 11 11 9 Protection 6 | . . 4 11 11 11 2 Ballistic Gun 27 | . 22 33 33 33 33 17 Launcher 4 | . 3 . 6 11 11 2 Naked Turns . | . . . . . . . Heaviest Build 31 | 12 15 24 31 31 31 31 Greatest Support 40 | 20 20 20 20 20 20 40 Greatest Overweight (x) 1 | . . 1 1 1 1 . Average Overweight (x) . | . . . 1 1 1 . Largest Inventory Capacity 15 | 8 8 8 8 8 8 15 Average Capacity 8 | 7 8 8 8 8 8 11 Most Carried 8 | 7 8 8 8 8 8 8 Average Carried 7 | 4 7 7 7 8 8 7 Final Capacity 15 | 8 8 8 8 8 8 15 Final Carried 8 | 7 8 8 8 8 8 7 Class Distribution -------------------- 53% | Tank 38% | Mutant 7% | Gunner Dominant Class ---------------- Mutant | -10/Materials Gunner | -9/Materials Tank | -9/Mines Tank | -9/Exiles Tank | -8/Mines Mutant | -8/Materials Resources | -11 -10 -9 -9 -9 -8 -8 ----------- Run | Yrd Mat Mat Min Exi Min Mat Matter Collected 605 | 207 37 161 133 . . 67 Remotely . | . . . . . . . Salvage Created 490 | . 58 161 146 . . 125 Parts 36 | . 14 13 4 . . 5 Haulers Intercepted . | . . . . . . . Recyclers Shooed . | . . . . . . . Parts Field Recycled . | . . . . . . . Retrieved Matter . | . . . . . . . Parts Self-Destructed . | . . . . . . . Prevented . | . . . . . . . Kills | -11 -10 -9 -9 -9 -8 -8 ------- Run | Yrd Mat Mat Min Exi Min Mat Combat Hostiles Destroyed 26 | . 7 7 8 . . 4 Guns 17 | . 1 7 6 . . 3 AOE 9 | . 6 . 2 . . 1 Classes Destroyed 5 | . 2 1 2 . . . Swarmer 12 | . 6 4 2 . . . Grunt 10 | . 1 1 4 . . 4 Brawler 1 | . . . 1 . . . Duelist 1 | . . . 1 . . . Sentry 2 | . . 2 . . . . Best Kill Streak 7 | . 7 6 3 . . 2 Combat Bots Only 7 | . 7 6 3 . . 2 Max Kills in Single Turn 2 | . 2 2 2 . . 1 Gunslinging 1 | . . 1 1 . . . Exploded 2 | . 2 . 1 . . 1 Melee . | . . . . . . . Uniques/NPCs Destroyed . | . . . . . . . Combat | -11 -10 -9 -9 -9 -8 -8 -------- Run | Yrd Mat Mat Min Exi Min Mat Hostile Shots Fired 208 | . 20 27 31 . . 130 Missed 59 | . 6 7 11 . . 35 Damage Taken 2259 | . 133 236 222 . . 1668 Core 699 | . 41 79 20 . . 559 Absorbed by Shields . | . . . . . . . Core Remaining (%) 86 | 100 83 . . . 75 . Volleys Fired 54 | . 7 9 19 . . 19 Largest 3 | . 2 3 3 . . 3 Hottest 75 | . 40 75 75 . . 75 Shots Fired 114 | . 10 27 43 . . 34 Gun 103 | . 6 27 36 . . 34 Cannon . | . . . . . . . Launcher 11 | . 4 . 7 . . . Special . | . . . . . . . Kinetic 94 | . 6 27 36 . . 25 Thermal 9 | . . . . . . 9 Explosive 11 | . 4 . 7 . . . Electromagnetic . | . . . . . . . Robot Hit Streak 10 | . 5 9 10 . . 7 Robot Miss Streak 6 | . 2 4 6 . . 4 Penetration Max . | . . . . . . . Secondary Targets 4 | . . 2 1 . . 1 Max Gunslinging Chain 1 | . . 1 1 . . 1 Shots Hit Robots 75 | . 7 15 25 . . 28 Core Hits 46 | . 10 9 13 . . 14 Critical Kills . | . . . . . . . Critical Parts Destroyed . | . . . . . . . Critical Strikes . | . . . . . . . Melee Attacks . | . . . . . . . Impact . | . . . . . . . Slashing . | . . . . . . . Piercing . | . . . . . . . Sneak Attacks . | . . . . . . . Combat Hostiles . | . . . . . . . Follow-up Attacks . | . . . . . . . Damage Inflicted 2271 | . 494 252 874 . . 651 Guns 1248 | . 73 252 419 . . 504 Cannons . | . . . . . . . Explosions 976 | . 421 . 455 . . 100 Melee . | . . . . . . . Ramming 47 | . . . . . . 47 Kinetic 1113 | . 73 252 419 . . 369 Thermal 135 | . . . . . . 135 Explosive 976 | . 421 . 455 . . 100 Electromagnetic . | . . . . . . . Impact . | . . . . . . . Slashing . | . . . . . . . Piercing . | . . . . . . . Highest Corruption . | . . . . . . . Average Corruption . | . . . . . . . Corruption Purged . | . . . . . . . Corruption Blocked . | . . . . . . . Overload Shots . | . . . . . . . Overflow Damage 38 | . . . . . . 38 Projectiles . | . . . . . . . Explosions 38 | . . . . . . 38 Melee . | . . . . . . . Knockbacks . | . . . . . . . Impact . | . . . . . . . Kinetic . | . . . . . . . Secondary . | . . . . . . . Self-Inflicted Damage 173 | . 2 . . . . 171 Shots 3 | . 1 . . . . 2 Rammed 1 | . . . . . . 1 Targets Rammed 14 | . . . . . . 14 Kicked 13 | . . . . . . 13 Crushed . | . . . . . . . Highest Temperature 117 | . . 63 84 . . 117 Average Temperature 32 | . . 20 30 . . 43 Received Heat Transfer 885 | . 30 69 66 . . 720 Siege Activations . | . . . . . . . Robots Corrupted . | . . . . . . . Combat Hostiles . | . . . . . . . Parts Fried . | . . . . . . . Impact Corruptions . | . . . . . . . Robots Melted . | . . . . . . . Combat Hostiles . | . . . . . . . Parts Melted . | . . . . . . . Heat Transferred 296 | . . . . . . 296 Parts Sabotaged . | . . . . . . . Parts Stolen . | . . . . . . . Parts Stripped . | . . . . . . . Power Chain Reactions . | . . . . . . . Alert | -11 -10 -9 -9 -9 -8 -8 ------- Run | Yrd Mat Mat Min Exi Min Mat Peak Influence 365 | . 199 293 365 . . 93 Initial 114 | . . 83 114 . . . Average 116 | . 48 194 205 . . 49 Maximum Alert Level 1 | . . 1 1 . . . Low Security (%) 76 | 100 100 41 53 . 100 100 Level 1 23 | . . 58 46 . . . Level 2 . | . . . . . . . Level 3 . | . . . . . . . Level 4 . | . . . . . . . Level 5 . | . . . . . . . High Security . | . . . . . . . Max Security . | . . . . . . . Squads Dispatched 4 | . 1 1 . . . 2 Investigation . | . . . . . . . Extermination . | . . . . . . . Reinforcement 3 | . 1 1 . . . 1 Assault . | . . . . . . . Garrison 1 | . . . . . . 1 Intercept . | . . . . . . . Searches Triggered . | . . . . . . . Construction Impeded 1 | . . . . . . 1 Haulers Reinforced . | . . . . . . . Active Scanning Responses . | . . . . . . . Cargo Convoy Interrupts . | . . . . . . . Stealth | -11 -10 -9 -9 -9 -8 -8 --------- Run | Yrd Mat Mat Min Exi Min Mat Distress Signals 3 | . . . 1 . . 2 Communications Jammed . | . . . . . . . Distress Signals . | . . . . . . . Times Spotted 45 | . 11 7 10 . . 17 Peak Tracking Total 11 | . 7 6 3 . . 11 Tactical Retreats 2 | . . 1 1 . . . Traps | -11 -10 -9 -9 -9 -8 -8 ------- Run | Yrd Mat Mat Min Exi Min Mat Traps Triggered . | . . . . . . . Indirectly . | . . . . . . . Trap Hack Attempts . | . . . . . . . Triggered . | . . . . . . . Disarmed . | . . . . . . . Reprogrammed . | . . . . . . . Reused . | . . . . . . . Traps Extracted . | . . . . . . . Installed . | . . . . . . . Triggered . | . . . . . . . Machines | -11 -10 -9 -9 -9 -8 -8 ---------- Run | Yrd Mat Mat Min Exi Min Mat Machines Disabled 2 | . . . . . . 2 Max in Single Turn 2 | . . . . . . 2 Machines Repaired . | . . . . . . . Machines Dismantled . | . . . . . . . Machines Sabotaged . | . . . . . . . Overloaded Fab Kills . | . . . . . . . Hacking | -11 -10 -9 -9 -9 -8 -8 --------- Run | Yrd Mat Mat Min Exi Min Mat Machines Accessed . | . . . . . . . Terminals . | . . . . . . . Fabricators . | . . . . . . . Repair Stations . | . . . . . . . Recycling Units . | . . . . . . . Scanalyzers . | . . . . . . . Garrison Access . | . . . . . . . Total Hacks . | . . . . . . . Successful . | . . . . . . . Failed . | . . . . . . . Catastrophic . | . . . . . . . Database Lockouts . | . . . . . . . Manual . | . . . . . . . Terminals . | . . . . . . . Fabricators . | . . . . . . . Repair Stations . | . . . . . . . Recycling Units . | . . . . . . . Scanalyzers . | . . . . . . . Garrison Access . | . . . . . . . Terminal Hacks . | . . . . . . . Fabricator Hacks . | . . . . . . . Repair Station Hacks . | . . . . . . . Recycling Unit Hacks . | . . . . . . . Scanalyzer . | . . . . . . . Garrison Access Hacks . | . . . . . . . Unauthorized Hacks . | . . . . . . . Terminals . | . . . . . . . Fabricators . | . . . . . . . Repair Stations . | . . . . . . . Recycling Units . | . . . . . . . Scanalyzers . | . . . . . . . Garrison Access . | . . . . . . . Data Cores Recovered . | . . . . . . . Used . | . . . . . . . Hacking Detections . | . . . . . . . Full Trace Events . | . . . . . . . Feedback Events . | . . . . . . . Feedback Blocked . | . . . . . . . Robot Schematics Acquired . | . . . . . . . Robots Built . | . . . . . . . Authchips . | . . . . . . . Time . | . . . . . . . Total Robot Build Rating . | . . . . . . . Part Schematics Acquired . | . . . . . . . Parts Built . | . . . . . . . Authchips . | . . . . . . . Time . | . . . . . . . Total Part Build Rating . | . . . . . . . Parts Repaired . | . . . . . . . Time . | . . . . . . . Parts Recycled . | . . . . . . . Recycled Matter . | . . . . . . . Retrieved Matter . | . . . . . . . Retrieved Components . | . . . . . . . Parts Scanalyzed . | . . . . . . . Part Schematics Acquired . | . . . . . . . Parts Damaged . | . . . . . . . Bothacking | -11 -10 -9 -9 -9 -8 -8 ------------ Run | Yrd Mat Mat Min Exi Min Mat Used RIF Installer . | . . . . . . . Robots Hacked . | . . . . . . . Non-combat . | . . . . . . . Combat . | . . . . . . . Robot Hacks Applied . | . . . . . . . Relay Couplers Released . | . . . . . . . Fabnet Peak Effective % . | . . . . . . . Robots Rewired . | . . . . . . . Allies Hacked . | . . . . . . . Hacks Repelled . | . . . . . . . Allies | -11 -10 -9 -9 -9 -8 -8 -------- Run | Yrd Mat Mat Min Exi Min Mat Total Allies . | . . . . . . . Largest Group . | . . . . . . . Highest-Rated Group . | . . . . . . . Highest-Rated Ally . | . . . . . . . Total Orders . | . . . . . . . Ally Attacks . | . . . . . . . Total Damage . | . . . . . . . Kills . | . . . . . . . Allies Corrupted . | . . . . . . . Allies Melted . | . . . . . . . Intel | -11 -10 -9 -9 -9 -8 -8 ------- Run | Yrd Mat Mat Min Exi Min Mat Robot Analysis Total . | . . . . . . . Derelict Logs Recovered . | . . . . . . . Drone Launches . | . . . . . . . Drone Recoveries . | . . . . . . . Exploration | -11 -10 -9 -9 -9 -8 -8 ------------- Run | Yrd Mat Mat Min Exi Min Mat Turns Passed 1375 | 66 203 198 431 54 80 343 Spaces Moved 715 | 46 119 97 192 29 43 189 Core 12 | 12 . . . . . . Treads . | . . . . . . . Legs 703 | 34 119 97 192 29 43 189 Wheels . | . . . . . . . Hover . | . . . . . . . Flight . | . . . . . . . Fastest Speed 50 | 50 120 120 190 190 190 120 Average Speed 148 | 101 120 147 190 190 190 120 Slowest Speed 190 | 120 120 190 190 190 190 120 Overloaded Moves . | . . . . . . . Propulsion Burnouts . | . . . . . . . Robots Hopped . | . . . . . . . Cave-ins Triggered . | . . . . . . . Exploration Rate (%) 16 | 5 16 6 49 8 15 18 Regions Visited 6 Branch Regions 3 Pre-discovered Areas . | . . . . . . . Known Exits Taken . | . . . . . . . Unknown Exits Taken 6 | 1 1 1 1 1 1 . Scrap Searched 1 | . . . 1 . . . Spaces Dug . | . . . . . . . Terrain Destroyed 94 | . 18 . 38 . . 38 Melee . | . . . . . . . Projectile . | . . . . . . . AOE 94 | . 18 . 38 . . 38 Terrain Rammed . | . . . . . . . Walls Destroyed . | . . . . . . . Machines Disabled . | . . . . . . . Actions | -11 -10 -9 -9 -9 -8 -8 --------- Run | Yrd Mat Mat Min Exi Min Mat Total 927 | 65 168 137 225 28 42 262 Wait 90 | 3 38 14 11 . . 24 Move 709 | 45 118 96 191 28 42 189 Hop . | . . . . . . . Pick Up 27 | 12 2 6 1 . . 6 Fast Attach 1 | . . 1 . . . . Attach 15 | 5 1 2 1 . . 6 Detach 1 | . . 1 . . . . Swap 8 | . 2 2 1 . . 3 Drop 8 | . . 6 1 . . 1 Fire 54 | . 7 9 19 . . 19 Melee . | . . . . . . . Ram 1 | . . . . . . 1 Kick 13 | . . . . . . 13 Crush . | . . . . . . . Escape Stasis . | . . . . . . . Rewire . | . . . . . . . Trap . | . . . . . . . Miscellaneous . | . . . . . . . Route ------- -11/Scrapyard -10/Materials -9/Materials -9/Mines -9/Exiles -8/Mines -8/Materials History --------- Turn | Location | Event 2 | -11/Scrapyard | Met Revision 17 8 | -11/Scrapyard | Discovered new exit (range 16) 67 | -11/Scrapyard | Entered Materials 254 | -10/Materials | Destroyed 7 combat bots 265 | -10/Materials | Discovered new exit (range 4) 270 | -10/Materials | Entered another Materials area 270 | -9/Materials | Evolved 2 slots: Weapon x2 444 | -9/Materials | Discovered new exit (range 10) 468 | -9/Materials | Entered Mines 698 | -9/Mines | Build established: Tank 889 | -9/Mines | Deemed a non-threat by the Exiles lab entrance 891 | -9/Mines | Discovered new exit (range 5) 899 | -9/Mines | Entered Exiles 928 | -9/Exiles | Discovered new exit (range 14) 953 | -9/Exiles | Entered Mines 1010 | -8/Mines | Discovered new exit (range 13) 1033 | -8/Mines | Entered Materials 1033 | -8/Materials | Evolved 2 slots: Propulsion x2 1191 | -8/Materials | Lost 7 parts (1p2n1u3w) 1319 | -8/Materials | Garrison activated, responded to threat 1359 | -8/Materials | Core integrity fell below 50% 1373 | -8/Materials | Core integrity fell below 20% 1376 | -8/Materials | Destroyed by L-31 Rogue with Katana Last Messages --------------- Critical hit (Burn: +37). M-28 Smith repairs G-47 Trooper. Kicked G-47 Trooper. S-10 Pest suffers critical hit (Burn). Lgt. Treads severed. M-28 Smith repairs L-31 Rogue. S-10 Pest destroyed. Kicked G-47 Trooper out of the way. R-06 Scavenger collects Lgt. Treads. Kicked G-47 Trooper. R-06 Scavenger destroyed. Kicked G-47 Trooper. Aluminum Leg destroyed. R-06 Scavenger collects Tractor Beam. Hpw. Shotgun destroyed. Pulse Rifle destroyed. Slammed into G-47 Trooper. R-06 Scavenger collects Lgt. Treads. K-01 Serf collects debris. Critical hit (Burn: +37). Map ----- +----------------------------------------------------+ | ?????????????????????????????????????????????????? | | ?????????????????????????????????????????????????? | | ????????????????????????????###########??????????? | | ????????????????????????????# #??????????? | | ????????????????????????????# #??????????? | | ????????????????????????????# #??????????? | | ????????????????????????????# """ #??????????? | | ????????????????????????????# """"" #######????? | | ????????????????????????????# """"" ##!! !##???? | | ????????????????????????????# """"" #! !#???? | | ????????????????????????????# """ # #???? | | ????????????????????????????#######+#+# #???? | | ???????????????????????????######## ##### | | ???????????????????????????# # # | | ???????????????????????????# # ### #### # | | ???????????????#???????????# """ # #?# # | | ???????????????# ??????????# """ + #?# # | | ???????????????# ?????????# """ # #?# # | | ???????????????# ????????# # #?# # | | ?????????####### ################ #?# # | | ???????? #?# # | | ???????? #?# ##+### | | ???????? = #?# | | ????????????##########k#####*###### #?# # | | ???????????????????# rg l ##%#????# #?#+###+### | | ???????????????????# %r@##=#????# #?# #?# | | ???????????????????# gg g## #????# #?# #?# | | ???????????????????# g ## #????# #?# #?# | | ???????????????????# ## #???## #?# #?### | | ???????????????????# ## #???# ?# #? | | ???????????????????######### #???# ?+ #? ! | | ???????????????????????????# #???# ?###/### | | ???????????????????????????# #???# #### # | | ???????????????????????????# #????# + """ | | ???????????????????????????# #????# # """ | | ??????????????????# ######## # #??#" # """ | | ??????????????????# #??#T #? | | ??????????????????# ########## #??#" #?### | | ??????????????????????????????##??# ##### | | ??????????????????????????????????# # | | ????????????????????????????????### !! #* ! | | ????????????????????????????????""" !! # ! | | ????????????????????????????????"R + | | ????????????????????????????????""" # | | ???????????????????????????????? "" """"" # | | ?????????????????????????????????## """"" ##### | | ??????????????????????????????????# """"" = # | | ??????????????????????????????????#??""""" # | | ??????????????????????????????????????"""" # | | ??????????????????????????????????????"""" ##### | +----------------------------------------------------+ Best States ------------- Heat Dissipation 31 Energy Generation 14 Energy Capacity 265 Matter Stores 262 Matter Capacity 300 Sight Range 16 Terrain Scan Density 10 Armor Coverage 225 Evasion (%) 55 Item Schematics ----------------- None Robot Schematics ------------------ None Fabricated ------------ Nothing Alien Tech Used ----------------- None Achievements -------------- Oops Challenges ------------ None Game ------ Seed GrenadePiercingPerforator Manual? 0 Play Time 00:29:41 Cumulative 4.4 hours Start 2024.04.19 @ 16:29:28 End 2024.04.19 @ 19:08:57 Sessions 1 Manual Loads 0 Difficulty Rogue Special Mode None Game No. 6 Rogue 6 Adventurer 0 Explorer 0 Win Type - Total 0 Types 0/0/0/0/0/0/0/0/0 Lore% 11 Gallery% 6 Achievement% 8 Wizard Run 0 Options --------- Layout 1 ASCII 0 Keyboard 0 Movement Numpad Keybinds 0 Fullscreen 1 Font 24/Smallcaps Map View 50x35 Zoom Use 0% Tactical HUD 0 Map Filters NONE Filters NONE Steam 1 RUN: 6a342c54-45a7-42b3-add2-d107c872c529